[Event "Early-Titled-Tuesday-Blitz-June-18-2024"]
[Site "Chess.com"]
[Date "2024.06.18"]
[Round "1"]
[White "cthulhuuu"]
[Black "ELPRIMO0O0"]
[Result "1-0"]
[WhiteElo "2352"]
[BlackElo "2638"]
[TimeControl "180+1"]
[EndTime "8:05:58 PDT"]
[Termination "cthulhuuu won by resignation"]

1. e4 {[%clk 0:02:59.9]} 1... Nf6 {[%clk 0:02:59.7]} 2. d3 {[%clk 0:02:59.8]}
2... d5 {[%clk 0:02:59.5]} 3. Nd2 {[%clk 0:02:53.7]} 3... e5 {[%clk 0:02:59.2]}
4. Ngf3 {[%clk 0:02:54.4]} 4... Nc6 {[%clk 0:02:58.9]} 5. g3 {[%clk 0:02:54.1]}
5... Bc5 {[%clk 0:02:50.8]} 6. Bg2 {[%clk 0:02:54.7]} 6... O-O {[%clk
0:02:51.3]} 7. O-O {[%clk 0:02:54.4]} 7... a5 {[%clk 0:02:46]} 8. c3 {[%clk
0:02:52.9]} 8... Re8 {[%clk 0:02:43.3]} 9. exd5 {[%clk 0:02:51.2]} 9... Nxd5
{[%clk 0:02:42.8]} 10. Nc4 {[%clk 0:02:49.3]} 10... f6 {[%clk 0:02:32.8]} 11. a4
{[%clk 0:02:48.2]} 11... Be6 {[%clk 0:02:29]} 12. Re1 {[%clk 0:02:48.4]} 12...
Qd7 {[%clk 0:02:25.7]} 13. Qb3 {[%clk 0:02:34.9]} 13... Nb6 {[%clk 0:02:19.8]}
14. Qb5 {[%clk 0:02:28.2]} 14... Qe7 {[%clk 0:01:49.7]} 15. Nxb6 {[%clk
0:02:21.7]} 15... Bxb6 {[%clk 0:01:50.6]} 16. d4 {[%clk 0:02:21.9]} 16... Qf7
{[%clk 0:01:39.8]} 17. d5 {[%clk 0:02:07.2]} 17... Bxd5 {[%clk 0:01:34.4]} 18.
Ng5 {[%clk 0:01:58.9]} 18... Bxg2 {[%clk 0:01:10.3]} 19. Nxf7 {[%clk 0:01:56.9]}
19... Bh3 {[%clk 0:01:11]} 20. Be3 {[%clk 0:01:45.8]} 20... Kxf7 {[%clk
0:01:08.1]} 21. Bxb6 {[%clk 0:01:43.5]} 21... cxb6 {[%clk 0:01:09]} 22. Qxb6
{[%clk 0:01:44.1]} 22... Re7 {[%clk 0:01:09.7]} 23. f3 {[%clk 0:01:41.5]} 23...
Rd8 {[%clk 0:01:00.3]} 24. Rad1 {[%clk 0:01:41]} 24... Red7 {[%clk 0:01:00.9]}
25. Rxd7+ {[%clk 0:01:30.7]} 25... Rxd7 {[%clk 0:01:01.8]} 26. Qb3+ {[%clk
0:01:30.5]} 26... Be6 {[%clk 0:01:02.3]} 27. Qc2 {[%clk 0:01:29.6]} 27... Ne7
{[%clk 0:00:55.2]} 28. Rd1 {[%clk 0:01:16.9]} 28... Bd5 {[%clk 0:00:38.5]} 29.
Qxh7 {[%clk 0:01:13.3]} 29... Be4 {[%clk 0:00:39]} 30. Qxg7+ {[%clk 0:00:55.6]}
30... Kxg7 {[%clk 0:00:36.9]} 31. Rxd7 {[%clk 0:00:56.5]} 1-0

[Event "Early-Titled-Tuesday-Blitz-June-18-2024"]
[Site "Chess.com"]
[Date "2024.06.18"]
[Round "1"]
[White "publicaccountcze"]
[Black "MVM2008"]
[Result "0-1"]
[WhiteElo "2181"]
[BlackElo "2579"]
[TimeControl "180+1"]
[EndTime "8:06:03 PDT"]
[Termination "MVM2008 won by resignation"]

1. e4 {[%clk 0:02:57.8]} 1... c6 {[%clk 0:02:57.9]} 2. d4 {[%clk 0:02:56.9]}
2... d5 {[%clk 0:02:57.6]} 3. f3 {[%clk 0:02:57.5]} 3... g6 {[%clk 0:02:55.5]}
4. e5 {[%clk 0:02:52.3]} 4... c5 {[%clk 0:02:55]} 5. c3 {[%clk 0:02:52]} 5...
Nc6 {[%clk 0:02:55.1]} 6. Be3 {[%clk 0:02:43.9]} 6... e6 {[%clk 0:02:48.5]} 7.
Bb5 {[%clk 0:02:25.6]} 7... Ne7 {[%clk 0:02:45.2]} 8. dxc5 {[%clk 0:02:09.2]}
8... Bg7 {[%clk 0:02:39.8]} 9. f4 {[%clk 0:01:59.3]} 9... Nf5 {[%clk 0:02:39.3]}
10. Bf2 {[%clk 0:01:39.6]} 10... h5 {[%clk 0:02:39.3]} 11. Nf3 {[%clk
0:01:32.9]} 11... Bd7 {[%clk 0:02:39.4]} 12. Bxc6 {[%clk 0:01:28.5]} 12... Bxc6
{[%clk 0:02:38.1]} 13. Nd4 {[%clk 0:01:29.1]} 13... Nxd4 {[%clk 0:02:31.7]} 14.
cxd4 {[%clk 0:01:29.3]} 14... Bb5 {[%clk 0:02:29.9]} 15. Nc3 {[%clk 0:01:27.5]}
15... Ba6 {[%clk 0:02:29.4]} 16. Qa4+ {[%clk 0:01:24.5]} 16... Kf8 {[%clk
0:02:23.2]} 17. b4 {[%clk 0:01:21.9]} 17... Bc4 {[%clk 0:02:18.9]} 18. Nb5
{[%clk 0:01:07.2]} 18... Qd7 {[%clk 0:01:40.3]} 19. Nc3 {[%clk 0:01:05.7]} 19...
Qd8 {[%clk 0:01:28.3]} 20. O-O-O {[%clk 0:01:01.6]} 20... b5 {[%clk 0:01:23.1]}
21. Nxb5 {[%clk 0:00:50.3]} 21... a5 {[%clk 0:01:21.3]} 22. bxa5 {[%clk
0:00:40.2]} 22... Rxa5 {[%clk 0:01:18.2]} 23. Qc2 {[%clk 0:00:11]} 23... Rxb5
{[%clk 0:01:15.2]} 24. Kd2 {[%clk 0:00:07]} 24... Qa5+ {[%clk 0:01:14.4]} 25.
Ke3 {[%clk 0:00:06.2]} 25... Qa3+ {[%clk 0:01:12.3]} 26. Kd2 {[%clk 0:00:03.7]}
26... Rb2 {[%clk 0:01:12.1]} 27. Rc1 {[%clk 0:00:03.4]} 27... Qd3+ {[%clk
0:01:10.7]} 28. Ke1 {[%clk 0:00:03.2]} 28... Rxc2 {[%clk 0:01:10.2]} 29. Rxc2
{[%clk 0:00:03.5]} 29... Qxc2 {[%clk 0:01:10.1]} 0-1

[Event "Early-Titled-Tuesday-Blitz-June-18-2024"]
[Site "Chess.com"]
[Date "2024.06.18"]
[Round "1"]
[White "Onischuk_V"]
[Black "Gryffindorac8"]
[Result "1-0"]
[WhiteElo "2830"]
[BlackElo "2472"]
[TimeControl "180+1"]
[EndTime "8:06:04 PDT"]
[Termination "Onischuk_V won by resignation"]

1. e4 {[%clk 0:02:59.7]} 1... c5 {[%clk 0:02:59.1]} 2. Nf3 {[%clk 0:02:59.4]}
2... d6 {[%clk 0:02:53.4]} 3. d4 {[%clk 0:02:59]} 3... cxd4 {[%clk 0:02:51.8]}
4. Nxd4 {[%clk 0:02:59.9]} 4... Nf6 {[%clk 0:02:52.1]} 5. Nc3 {[%clk 0:03:00.1]}
5... a6 {[%clk 0:02:52.3]} 6. a4 {[%clk 0:02:59.3]} 6... e5 {[%clk 0:02:52.3]}
7. Nf3 {[%clk 0:02:55.5]} 7... Be7 {[%clk 0:02:51.6]} 8. Bc4 {[%clk 0:02:54.3]}
8... Be6 {[%clk 0:02:47.4]} 9. Qe2 {[%clk 0:02:54.5]} 9... O-O {[%clk 0:02:29]}
10. O-O {[%clk 0:02:53.4]} 10... Nc6 {[%clk 0:02:26.1]} 11. Rd1 {[%clk
0:02:52.4]} 11... Rc8 {[%clk 0:02:23.7]} 12. Ba2 {[%clk 0:02:50]} 12... Nb4
{[%clk 0:02:03.7]} 13. Bxe6 {[%clk 0:02:48.2]} 13... fxe6 {[%clk 0:02:04.6]} 14.
Nxe5 {[%clk 0:02:48.2]} 14... Qe8 {[%clk 0:01:32.9]} 15. Nd3 {[%clk 0:02:46.8]}
15... Nc6 {[%clk 0:01:28.2]} 16. Be3 {[%clk 0:02:46.4]} 16... Qg6 {[%clk
0:01:26.2]} 17. f3 {[%clk 0:02:43.2]} 17... Ne5 {[%clk 0:01:05]} 18. Nxe5 {[%clk
0:02:39.8]} 18... dxe5 {[%clk 0:01:04.5]} 19. Rd3 {[%clk 0:02:32.3]} 19... Bb4
{[%clk 0:00:58.3]} 20. Nd1 {[%clk 0:02:26.4]} 20... Rc7 {[%clk 0:00:48.1]} 21.
c3 {[%clk 0:02:24.7]} 21... Be7 {[%clk 0:00:47.8]} 22. Nf2 {[%clk 0:02:23.6]}
22... Nd7 {[%clk 0:00:44.3]} 23. b4 {[%clk 0:02:18.6]} 23... a5 {[%clk
0:00:38.1]} 24. Rad1 {[%clk 0:02:15.5]} 24... Qe8 {[%clk 0:00:37.5]} 25. Qb2
{[%clk 0:02:08.8]} 25... Kh8 {[%clk 0:00:18.6]} 26. Qb3 {[%clk 0:02:06.8]} 26...
Rf6 {[%clk 0:00:12.3]} 27. Kf1 {[%clk 0:01:53.6]} 27... h5 {[%clk 0:00:12.2]}
28. bxa5 {[%clk 0:01:45.5]} 28... Nf8 {[%clk 0:00:11.6]} 29. Qb5 {[%clk
0:01:44]} 29... Rc6 {[%clk 0:00:04.9]} 30. Qxb7 {[%clk 0:01:42.7]} 30... Rc8
{[%clk 0:00:03.5]} 31. a6 {[%clk 0:01:41.5]} 31... Rb8 {[%clk 0:00:03.8]} 32.
Qc7 {[%clk 0:01:39.4]} 32... Ra8 {[%clk 0:00:03.6]} 33. a7 {[%clk 0:01:38.8]}
33... Ng6 {[%clk 0:00:04.1]} 34. Qd7 {[%clk 0:01:35.8]} 34... Qf8 {[%clk
0:00:04.1]} 35. Qc6 {[%clk 0:01:32.8]} 35... Nh4 {[%clk 0:00:04.2]} 36. Rb1
{[%clk 0:01:27.8]} 36... Rg6 {[%clk 0:00:04.3]} 37. Qxa8 {[%clk 0:01:26.4]}
37... Qxa8 {[%clk 0:00:04.2]} 38. Rb8+ {[%clk 0:01:26.3]} 1-0

[Event "Early-Titled-Tuesday-Blitz-June-18-2024"]
[Site "Chess.com"]
[Date "2024.06.18"]
[Round "1"]
[White "Chessbard1972"]
[Black "Pelopidass"]
[Result "1-0"]
[WhiteElo "2228"]
[BlackElo "2575"]
[TimeControl "180+1"]
[EndTime "8:06:05 PDT"]
[Termination "Chessbard1972 won by resignation"]

1. e4 {[%clk 0:03:00.3]} 1... e6 {[%clk 0:03:00.4]} 2. d4 {[%clk 0:02:59.6]}
2... d5 {[%clk 0:03:01.3]} 3. e5 {[%clk 0:03:00]} 3... c5 {[%clk 0:03:00.7]} 4.
dxc5 {[%clk 0:03:00.5]} 4... Bxc5 {[%clk 0:03:00.2]} 5. Bd3 {[%clk 0:02:59.7]}
5... Qb6 {[%clk 0:02:58.3]} 6. Qe2 {[%clk 0:02:58.4]} 6... Nc6 {[%clk
0:02:57.5]} 7. c3 {[%clk 0:02:56]} 7... Nge7 {[%clk 0:02:57]} 8. Bf4 {[%clk
0:02:52.6]} 8... Ng6 {[%clk 0:02:56.5]} 9. Bg3 {[%clk 0:02:52.9]} 9... a5 {[%clk
0:02:53.4]} 10. a4 {[%clk 0:02:51.3]} 10... Bd7 {[%clk 0:02:40.8]} 11. Nf3
{[%clk 0:02:50.1]} 11... h6 {[%clk 0:02:33.9]} 12. O-O {[%clk 0:02:47.2]} 12...
Rc8 {[%clk 0:02:32.7]} 13. h4 {[%clk 0:02:45]} 13... Qd8 {[%clk 0:02:27.8]} 14.
h5 {[%clk 0:02:43.6]} 14... Nge7 {[%clk 0:02:24.9]} 15. Bh4 {[%clk 0:02:42.6]}
15... Qc7 {[%clk 0:02:23.9]} 16. Na3 {[%clk 0:02:34.6]} 16... Bxa3 {[%clk
0:02:22.2]} 17. Rxa3 {[%clk 0:02:33.1]} 17... O-O {[%clk 0:02:14.4]} 18. Bg3
{[%clk 0:02:21.8]} 18... Nf5 {[%clk 0:02:11.7]} 19. Bxf5 {[%clk 0:02:19.9]}
19... exf5 {[%clk 0:02:10.8]} 20. e6 {[%clk 0:02:20]} 20... f4 {[%clk
0:02:08.2]} 21. exd7 {[%clk 0:02:17.3]} 21... Rcd8 {[%clk 0:02:08.6]} 22. Bh4
{[%clk 0:02:13.4]} 22... Rxd7 {[%clk 0:02:08.6]} 23. Raa1 {[%clk 0:02:07.9]}
23... Qb6 {[%clk 0:01:57.1]} 24. Rad1 {[%clk 0:02:05.3]} 24... Rd6 {[%clk
0:01:52.7]} 25. Nd4 {[%clk 0:02:01.8]} 25... Nxd4 {[%clk 0:01:45.9]} 26. Rxd4
{[%clk 0:02:01.2]} 26... Re6 {[%clk 0:01:46]} 27. Qd2 {[%clk 0:01:58]} 27... Re4
{[%clk 0:01:46.1]} 28. Rxe4 {[%clk 0:01:55.2]} 28... dxe4 {[%clk 0:01:46.2]} 29.
Qxf4 {[%clk 0:01:54.9]} 29... Qxb2 {[%clk 0:01:44.4]} 30. Qxe4 {[%clk
0:01:54.3]} 30... Qxc3 {[%clk 0:01:44.8]} 31. Qxb7 {[%clk 0:01:51.8]} 31... Qc4
{[%clk 0:01:40.8]} 32. Be7 {[%clk 0:01:50.4]} 32... Re8 {[%clk 0:01:40.2]} 33.
Qd7 {[%clk 0:01:48.3]} 33... Rb8 {[%clk 0:01:38.2]} 34. Rd1 {[%clk 0:01:41.9]}
34... Qe4 {[%clk 0:01:30.2]} 35. Bd6 {[%clk 0:01:33.5]} 35... Rb2 {[%clk
0:01:11.2]} 36. Bg3 {[%clk 0:01:30.9]} 36... Qe2 {[%clk 0:00:20]} 37. Qd8+
{[%clk 0:01:28.2]} 37... Kh7 {[%clk 0:00:20.1]} 38. Qd3+ {[%clk 0:01:27.8]}
38... Qxd3 {[%clk 0:00:20.5]} 39. Rxd3 {[%clk 0:01:28]} 39... Ra2 {[%clk
0:00:21.1]} 40. Rd4 {[%clk 0:01:27.6]} 40... Rc2 {[%clk 0:00:18.9]} 41. Bf4
{[%clk 0:01:23.3]} 1-0

[Event "Early-Titled-Tuesday-Blitz-June-18-2024"]
[Site "Chess.com"]
[Date "2024.06.18"]
[Round "1"]
[White "aa175"]
[Black "andrzej"]
[Result "1-0"]
[WhiteElo "2836"]
[BlackElo "2478"]
[TimeControl "180+1"]
[EndTime "8:06:09 PDT"]
[Termination "aa175 won by resignation"]

1. e4 {[%clk 0:03:00.3]} 1... e5 {[%clk 0:02:59.8]} 2. Nf3 {[%clk 0:03:00]} 2...
Nf6 {[%clk 0:03:00.5]} 3. Nxe5 {[%clk 0:02:59.5]} 3... d6 {[%clk 0:03:01.1]} 4.
Nf3 {[%clk 0:02:59.6]} 4... Nxe4 {[%clk 0:03:01.7]} 5. Nc3 {[%clk 0:02:40.4]}
5... Nxc3 {[%clk 0:03:01.1]} 6. dxc3 {[%clk 0:02:41.2]} 6... Be7 {[%clk
0:03:01.1]} 7. Be3 {[%clk 0:02:38.9]} 7... Nd7 {[%clk 0:03:01.5]} 8. Bd3 {[%clk
0:02:39.3]} 8... O-O {[%clk 0:02:59.8]} 9. Qd2 {[%clk 0:02:39.3]} 9... Nc5
{[%clk 0:02:54.7]} 10. Bxc5 {[%clk 0:02:36.8]} 10... dxc5 {[%clk 0:02:54.8]} 11.
O-O-O {[%clk 0:02:35]} 11... Bd6 {[%clk 0:02:55.3]} 12. Ng5 {[%clk 0:02:32.6]}
12... h6 {[%clk 0:02:37.7]} 13. Ne4 {[%clk 0:02:24.3]} 13... Be7 {[%clk
0:02:36.7]} 14. Qe3 {[%clk 0:02:22.1]} 14... Be6 {[%clk 0:02:06.4]} 15. Nxc5
{[%clk 0:02:17.8]} 15... Bxc5 {[%clk 0:02:03.8]} 16. Qxc5 {[%clk 0:02:18.5]}
16... Qg5+ {[%clk 0:01:49]} 17. Qxg5 {[%clk 0:02:15]} 17... hxg5 {[%clk
0:01:49.9]} 18. h4 {[%clk 0:02:12.5]} 18... gxh4 {[%clk 0:01:40.9]} 19. Rxh4
{[%clk 0:02:04.5]} 19... g6 {[%clk 0:01:41.1]} 20. Rdh1 {[%clk 0:02:00.8]} 20...
Kg7 {[%clk 0:01:31.9]} 21. Kd2 {[%clk 0:02:00.8]} 21... Rad8 {[%clk 0:01:31.6]}
22. Ke3 {[%clk 0:02:00.8]} 22... b6 {[%clk 0:01:27.6]} 23. a4 {[%clk 0:01:56.9]}
23... a5 {[%clk 0:01:27.1]} 24. g4 {[%clk 0:01:54.2]} 24... Bd5 {[%clk
0:01:17.5]} 25. f3 {[%clk 0:01:49.3]} 25... Bc6 {[%clk 0:00:56.5]} 26. g5 {[%clk
0:01:45.7]} 26... Rh8 {[%clk 0:00:52.6]} 27. Rxh8 {[%clk 0:01:45.5]} 27... Rxh8
{[%clk 0:00:53.5]} 28. Rxh8 {[%clk 0:01:45.7]} 28... Kxh8 {[%clk 0:00:54.4]} 29.
b3 {[%clk 0:01:31]} 29... Kg7 {[%clk 0:00:53.8]} 30. Kd4 {[%clk 0:01:31]} 30...
Bxf3 {[%clk 0:00:52.9]} 31. Ke5 {[%clk 0:01:31.7]} 31... Kf8 {[%clk 0:00:42.6]}
32. Kf6 {[%clk 0:01:30.5]} 32... Bd1 {[%clk 0:00:40.5]} 33. Bc4 {[%clk
0:01:21.3]} 33... Bxc2 {[%clk 0:00:37.9]} 34. Bxf7 {[%clk 0:01:21.7]} 34... Bd1
{[%clk 0:00:34.3]} 35. Kxg6 {[%clk 0:01:18.7]} 35... c6 {[%clk 0:00:28.9]} 36.
Kf6 {[%clk 0:01:12.8]} 36... Bc2 {[%clk 0:00:19.6]} 37. g6 {[%clk 0:01:09.9]}
37... Bxg6 {[%clk 0:00:19.2]} 38. Bxg6 {[%clk 0:01:09.2]} 1-0

[Event "Early-Titled-Tuesday-Blitz-June-18-2024"]
[Site "Chess.com"]
[Date "2024.06.18"]
[Round "1"]
[White "Meri-Arabidze"]
[Black "H3nriqueTV"]
[Result "1-0"]
[WhiteElo "2665"]
[BlackElo "2358"]
[TimeControl "180+1"]
[EndTime "8:06:12 PDT"]
[Termination "Meri-Arabidze won by resignation"]

1. Nf3 {[%clk 0:03:00.9]} 1... d5 {[%clk 0:02:59.9]} 2. c4 {[%clk 0:03:01.2]}
2... c6 {[%clk 0:03:00.1]} 3. g3 {[%clk 0:03:00.9]} 3... Nf6 {[%clk 0:02:55.9]}
4. Bg2 {[%clk 0:03:00.9]} 4... Bf5 {[%clk 0:02:45.7]} 5. Qb3 {[%clk 0:03:00.3]}
5... b6 {[%clk 0:02:38.2]} 6. O-O {[%clk 0:02:58.7]} 6... e6 {[%clk 0:02:37.8]}
7. d3 {[%clk 0:02:55.9]} 7... Bd6 {[%clk 0:02:32.4]} 8. Nc3 {[%clk 0:02:54.3]}
8... O-O {[%clk 0:02:28.8]} 9. a3 {[%clk 0:02:51.2]} 9... Bg6 {[%clk 0:02:28.7]}
10. Re1 {[%clk 0:02:44.7]} 10... Nbd7 {[%clk 0:02:28.2]} 11. Qa2 {[%clk
0:02:43]} 11... Rc8 {[%clk 0:02:22.3]} 12. b4 {[%clk 0:02:42.8]} 12... Ne5
{[%clk 0:02:17.1]} 13. Bb2 {[%clk 0:02:37]} 13... Nxf3+ {[%clk 0:02:11.5]} 14.
Bxf3 {[%clk 0:02:37.9]} 14... Be5 {[%clk 0:02:12.3]} 15. Rad1 {[%clk 0:02:27.9]}
15... Qe7 {[%clk 0:02:09]} 16. Qb3 {[%clk 0:02:25.5]} 16... Rfd8 {[%clk
0:02:07.9]} 17. Bg2 {[%clk 0:02:23.9]} 17... h6 {[%clk 0:01:52.1]} 18. a4 {[%clk
0:02:23.5]} 18... h5 {[%clk 0:01:43.8]} 19. a5 {[%clk 0:02:17.4]} 19... h4
{[%clk 0:01:39.1]} 20. axb6 {[%clk 0:02:16.2]} 20... axb6 {[%clk 0:01:40]} 21.
Na4 {[%clk 0:02:11.5]} 21... Rb8 {[%clk 0:01:37.7]} 22. Bxe5 {[%clk 0:02:10.6]}
22... Rb7 {[%clk 0:01:26.6]} 23. Bxf6 {[%clk 0:02:01]} 23... Qxf6 {[%clk
0:01:26.2]} 24. b5 {[%clk 0:01:59.2]} 24... c5 {[%clk 0:01:08.3]} 25. cxd5
{[%clk 0:01:57.8]} 25... exd5 {[%clk 0:01:09.2]} 26. Bxd5 {[%clk 0:01:57.3]}
26... Rbb8 {[%clk 0:01:06.7]} 27. Bg2 {[%clk 0:01:53.7]} 27... hxg3 {[%clk
0:01:04.3]} 28. hxg3 {[%clk 0:01:53.5]} 28... Rd4 {[%clk 0:01:03.2]} 29. Nc3
{[%clk 0:01:51.9]} 29... Rbd8 {[%clk 0:01:02]} 30. Ra1 {[%clk 0:01:48]} 30... c4
{[%clk 0:00:56.2]} 31. dxc4 {[%clk 0:01:46.1]} 31... Rd2 {[%clk 0:00:56.3]} 32.
Nd5 {[%clk 0:01:44.1]} 32... Qe5 {[%clk 0:00:51]} 33. Qe3 {[%clk 0:01:42.2]}
33... Qb2 {[%clk 0:00:43.9]} 34. Ne7+ {[%clk 0:01:39.9]} 34... Kh7 {[%clk
0:00:43.8]} 35. Nxg6 {[%clk 0:01:40]} 35... fxg6 {[%clk 0:00:44.7]} 36. Qxb6
{[%clk 0:01:33.2]} 36... Re8 {[%clk 0:00:41.8]} 37. Ra6 {[%clk 0:01:27.1]} 37...
Qc2 {[%clk 0:00:34.9]} 38. Bf3 {[%clk 0:01:24.3]} 38... Rd3 {[%clk 0:00:22]} 39.
Kg2 {[%clk 0:01:21.2]} 39... Rxf3 {[%clk 0:00:20.5]} 40. Rh1+ {[%clk 0:01:20.6]}
40... Kg8 {[%clk 0:00:19.8]} 41. exf3 {[%clk 0:01:20.8]} 41... Qf5 {[%clk
0:00:17.8]} 1-0

[Event "Early-Titled-Tuesday-Blitz-June-18-2024"]
[Site "Chess.com"]
[Date "2024.06.18"]
[Round "1"]
[White "Triumphmate"]
[Black "ilqar_74"]
[Result "0-1"]
[WhiteElo "2493"]
[BlackElo "2862"]
[TimeControl "180+1"]
[EndTime "8:06:14 PDT"]
[Termination "ilqar_74 won by resignation"]

1. e4 {[%clk 0:02:57.7]} 1... c5 {[%clk 0:02:58.1]} 2. Nf3 {[%clk 0:02:56.1]}
2... d6 {[%clk 0:02:58.4]} 3. d4 {[%clk 0:02:55.4]} 3... cxd4 {[%clk 0:02:59.3]}
4. Nxd4 {[%clk 0:02:56.3]} 4... Nf6 {[%clk 0:02:59.9]} 5. Nc3 {[%clk 0:02:57.2]}
5... a6 {[%clk 0:03:00.2]} 6. f4 {[%clk 0:02:57.6]} 6... e6 {[%clk 0:02:57.5]}
7. Nf3 {[%clk 0:02:57.2]} 7... Nc6 {[%clk 0:02:56.5]} 8. Bd3 {[%clk 0:02:57.5]}
8... Be7 {[%clk 0:02:56.1]} 9. O-O {[%clk 0:02:57.7]} 9... h6 {[%clk 0:02:53.5]}
10. a4 {[%clk 0:02:57.3]} 10... O-O {[%clk 0:02:52.5]} 11. Kh1 {[%clk
0:02:57.6]} 11... b6 {[%clk 0:02:51.6]} 12. Qe1 {[%clk 0:02:57.9]} 12... Nb4
{[%clk 0:02:44.1]} 13. Be3 {[%clk 0:02:58.2]} 13... Nxd3 {[%clk 0:02:44]} 14.
cxd3 {[%clk 0:02:59.1]} 14... Bb7 {[%clk 0:02:44.1]} 15. h3 {[%clk 0:02:59]}
15... Bc6 {[%clk 0:02:38.2]} 16. Qg3 {[%clk 0:02:56.8]} 16... b5 {[%clk
0:02:35.3]} 17. Nd4 {[%clk 0:02:53]} 17... Bd7 {[%clk 0:02:33]} 18. f5 {[%clk
0:02:32.9]} 18... Kh7 {[%clk 0:02:26.2]} 19. axb5 {[%clk 0:02:17.9]} 19... axb5
{[%clk 0:02:22.7]} 20. Ncxb5 {[%clk 0:02:10.2]} 20... e5 {[%clk 0:02:08.9]} 21.
Rxa8 {[%clk 0:01:34.3]} 21... Qxa8 {[%clk 0:02:07.2]} 22. Bd2 {[%clk 0:01:24]}
22... Qb8 {[%clk 0:01:54.1]} 23. Nxd6 {[%clk 0:01:06]} 23... Qxd6 {[%clk
0:01:52.3]} 24. Nf3 {[%clk 0:00:59.7]} 24... Bb5 {[%clk 0:01:39.7]} 25. Nxe5
{[%clk 0:00:47.4]} 25... Nh5 {[%clk 0:01:34.4]} 26. Qh2 {[%clk 0:00:32.5]} 26...
Bf6 {[%clk 0:01:22.8]} 27. Bc3 {[%clk 0:00:29.3]} 27... Re8 {[%clk 0:01:13.6]}
28. Nxf7 {[%clk 0:00:15.2]} 28... Ng3+ {[%clk 0:01:10.9]} 29. Kg1 {[%clk
0:00:15.5]} 29... Qb6+ {[%clk 0:01:02.1]} 30. Rf2 {[%clk 0:00:15.7]} 30... Ne2+
{[%clk 0:01:01.9]} 31. Kf1 {[%clk 0:00:16.3]} 31... Nxc3 {[%clk 0:01:02.1]} 32.
bxc3 {[%clk 0:00:16]} 32... Bxd3+ {[%clk 0:01:02.2]} 33. Kg1 {[%clk 0:00:16.4]}
33... Qb1+ {[%clk 0:01:00.8]} 0-1

[Event "Early-Titled-Tuesday-Blitz-June-18-2024"]
[Site "Chess.com"]
[Date "2024.06.18"]
[Round "1"]
[White "PapaieDudu"]
[Black "ellatambien"]
[Result "0-1"]
[WhiteElo "2365"]
[BlackElo "2680"]
[TimeControl "180+1"]
[EndTime "8:06:18 PDT"]
[Termination "ellatambien won by resignation"]

1. Nf3 {[%clk 0:02:56.8]} 1... d5 {[%clk 0:02:57.5]} 2. d4 {[%clk 0:02:56.8]}
2... c5 {[%clk 0:02:46.5]} 3. e3 {[%clk 0:02:53.5]} 3... Nf6 {[%clk 0:02:44.3]}
4. c3 {[%clk 0:02:46.9]} 4... g6 {[%clk 0:02:36.3]} 5. dxc5 {[%clk 0:02:41.8]}
5... Bg7 {[%clk 0:02:34.5]} 6. b4 {[%clk 0:02:34.7]} 6... O-O {[%clk 0:02:33.3]}
7. Be2 {[%clk 0:02:33]} 7... Ne4 {[%clk 0:02:15.2]} 8. Bb2 {[%clk 0:02:27.3]}
8... a5 {[%clk 0:02:08.6]} 9. Qb3 {[%clk 0:02:22.9]} 9... b6 {[%clk 0:02:04.5]}
10. cxb6 {[%clk 0:02:20.5]} 10... Qxb6 {[%clk 0:02:04.5]} 11. O-O {[%clk
0:02:05.2]} 11... Rd8 {[%clk 0:01:49.6]} 12. Rd1 {[%clk 0:01:57.4]} 12... Nc6
{[%clk 0:01:33.6]} 13. a3 {[%clk 0:01:55]} 13... Be6 {[%clk 0:01:22.8]} 14. Nd4
{[%clk 0:01:49]} 14... Ne5 {[%clk 0:01:21.8]} 15. Nd2 {[%clk 0:01:39.4]} 15...
Nxd2 {[%clk 0:01:13.5]} 16. Rxd2 {[%clk 0:01:39.3]} 16... Nc4 {[%clk 0:01:14.4]}
17. Bxc4 {[%clk 0:01:36.1]} 17... dxc4 {[%clk 0:01:15.3]} 18. Qc2 {[%clk
0:01:35.2]} 18... Bd7 {[%clk 0:01:10.9]} 19. Rad1 {[%clk 0:01:30.6]} 19... axb4
{[%clk 0:01:00.8]} 20. cxb4 {[%clk 0:01:29.8]} 20... Ba4 {[%clk 0:01:00.2]} 21.
Qxc4 {[%clk 0:01:25.7]} 21... Bxd1 {[%clk 0:00:59.6]} 22. Rxd1 {[%clk
0:01:25.8]} 22... e5 {[%clk 0:00:57.5]} 23. a4 {[%clk 0:01:06.8]} 23... exd4
{[%clk 0:00:56.9]} 24. a5 {[%clk 0:01:06.7]} 24... Qe6 {[%clk 0:00:55.7]} 25.
Qxe6 {[%clk 0:01:02.6]} 25... fxe6 {[%clk 0:00:56.6]} 26. exd4 {[%clk
0:00:59.6]} 26... Rd5 {[%clk 0:00:55.9]} 27. Kf1 {[%clk 0:00:51.6]} 27... e5
{[%clk 0:00:55.8]} 28. Ke2 {[%clk 0:00:48.6]} 28... exd4 {[%clk 0:00:55.3]} 29.
Kd3 {[%clk 0:00:49]} 29... Rb5 {[%clk 0:00:51.7]} 30. Kc4 {[%clk 0:00:48.9]}
30... Rab8 {[%clk 0:00:51.5]} 31. Ba3 {[%clk 0:00:47.1]} 31... Bf8 {[%clk
0:00:51.2]} 32. Rb1 {[%clk 0:00:45.5]} 32... Rxa5 {[%clk 0:00:51.5]} 33. bxa5
{[%clk 0:00:39.5]} 33... Rxb1 {[%clk 0:00:50.5]} 34. a6 {[%clk 0:00:37.9]} 34...
Ra1 {[%clk 0:00:41.6]} 0-1

[Event "Early-Titled-Tuesday-Blitz-June-18-2024"]
[Site "Chess.com"]
[Date "2024.06.18"]
[Round "1"]
[White "KubaGepard"]
[Black "talaicito"]
[Result "1-0"]
[WhiteElo "2609"]
[BlackElo "2258"]
[TimeControl "180+1"]
[EndTime "8:06:18 PDT"]
[Termination "KubaGepard won on time"]

1. e4 {[%clk 0:02:55.5]} 1... c5 {[%clk 0:02:59.9]} 2. Nf3 {[%clk 0:02:55.4]}
2... d6 {[%clk 0:02:59.9]} 3. d4 {[%clk 0:02:56]} 3... cxd4 {[%clk 0:03:00.8]}
4. Nxd4 {[%clk 0:02:56.7]} 4... Nf6 {[%clk 0:03:01.1]} 5. Nc3 {[%clk 0:02:57.4]}
5... g6 {[%clk 0:03:02]} 6. Be3 {[%clk 0:02:56.3]} 6... Bg7 {[%clk 0:03:01.6]}
7. f3 {[%clk 0:02:56.9]} 7... O-O {[%clk 0:03:01.8]} 8. Qd2 {[%clk 0:02:57.5]}
8... Nc6 {[%clk 0:03:00.3]} 9. g4 {[%clk 0:02:57.6]} 9... Qa5 {[%clk 0:02:32.9]}
10. Nb3 {[%clk 0:02:49.2]} 10... Qd8 {[%clk 0:02:19.7]} 11. O-O-O {[%clk
0:02:46.3]} 11... Be6 {[%clk 0:02:15.1]} 12. h4 {[%clk 0:02:43]} 12... h5 {[%clk
0:02:13.7]} 13. gxh5 {[%clk 0:02:35.7]} 13... Nxh5 {[%clk 0:02:13.2]} 14. Rg1
{[%clk 0:02:36.3]} 14... Rc8 {[%clk 0:02:00.9]} 15. f4 {[%clk 0:02:26.1]} 15...
Nb4 {[%clk 0:01:49.8]} 16. Kb1 {[%clk 0:02:05.9]} 16... Bxb3 {[%clk 0:01:42.7]}
17. cxb3 {[%clk 0:01:43.7]} 17... Qa5 {[%clk 0:01:30.4]} 18. Rg5 {[%clk
0:01:40]} 18... Qc7 {[%clk 0:01:14.5]} 19. Bc4 {[%clk 0:01:19.1]} 19... Kh7
{[%clk 0:00:52.2]} 20. Rdg1 {[%clk 0:01:00.2]} 20... a6 {[%clk 0:00:47.2]} 21.
Qe2 {[%clk 0:00:57.3]} 21... Bh6 {[%clk 0:00:30.6]} 22. Rxh5 {[%clk 0:00:53.6]}
22... gxh5 {[%clk 0:00:30]} 23. Qxh5 {[%clk 0:00:54.1]} 23... Rg8 {[%clk
0:00:24]} 24. Qxf7+ {[%clk 0:00:50.3]} 24... Rg7 {[%clk 0:00:23.3]} 25. Rxg7+
{[%clk 0:00:50.2]} 25... Bxg7 {[%clk 0:00:23.3]} 26. Qh5+ {[%clk 0:00:50.6]}
26... Bh6 {[%clk 0:00:12.5]} 27. f5 {[%clk 0:00:50.7]} 1-0